[Event "FTX Road to Miami Prelims 2022"]
[Site "Online"]
[Date "2022.07.04"]
[Round "3.2"]
[White "Dominguez Perez, Leinier"]
[Black "Shankland, Sam"]
[Result "1/2-1/2"]
[ECO "C47"]
[WhiteElo "2754"]
[BlackElo "2720"]
[Annotator "TA"]
[PlyCount "121"]
[EventDate "2022.07.10"]
[EventType "tourn"]
[EventCountry "NET"]
[SourceTitle "playchess.com"]
[Source "ChessBase"]
[SourceQuality "1"]
[TimeControl "40/5400+30:1800+30"]

{[%evp 16,120,6,12,12,14,18,12,64,55,71,73,71,76,75,76,80,67,73,60,64,61,113,98,152,106,103,86,81,90,81,0,0,0,0,0,54,52,55,46,45,46,45,46,54,57,51,49,64,42,62,41,88,87,116,97,89,99,89,59,62,62,62,62,62,12,12,8,8,8,8,8,8,8,8,8,8,8,8,8,8,8,284,284,284,8,8,8,8,8,8,8,8,8,8,8,8,8,8,8,8,8,8,8,8,8,8]} 1. e4 {[%emt 1:15:40]} e5 {[%emt 1:15:40]} 2. Nf3 {[%emt 0:00:22]} Nc6 {[%emt 0:00:22]} 3. Nc3 {[%emt 0:00:20]} Nf6 {[%emt 0:00:23]} 4. d4 {[%emt 0:00:21]} exd4 {[%emt 0:00:23]} 5. Nxd4 {[%emt 0:00:21]} Bb4 {[%emt 0:00:23]} 6. Nxc6 {[%emt 0:00:21]} bxc6 {[%emt 0:00:21]} 7. Bd3 {[%emt 0:00:20]} O-O {[%emt 0:00:21]} 8. O-O {[%emt 0:00:21]} d5 {[%emt 0:00:23]} 9. Bd2 {[%emt 0:00:21]} a5 {[%emt 0:01:40] C47: Scotch Four Knights and Four Knights with 4 g3.} 10. Re1 {[%emt 0:00:33][%cal Bf1e1,Be1e4,Be4d4][%mdl 32]} Bg4 {[%emt 0:01:12]} 11. Qc1 {[%emt 0:00:22] [#]} Qd7 $146 {[%emt 0:01:43]} (11... Re8 $11) ({Predecessor:} 11... Re8 12. a3 Bxc3 13. Bxc3 Nxe4 14. Bxe4 dxe4 15. Qf4 Bh5 16. Rxe4 f6 17. Rxe8+ Bxe8 {½-½ (31) Erdos,V (2615)-Mamedyarov,S (2765) Terme Catez 2021}) 12. a3 {[%emt 0:03:47]} Bxc3 {[%emt 0:02:29]} 13. Bxc3 {[%emt 0:00:23]} Nxe4 {[%emt 0:00:21]} 14. Bxe4 {[%emt 0:01:17]} dxe4 {[%emt 0:00:23]} 15. Rxe4 {[%emt 0:00:27] Black must now prevent Qg5.} Bf5 {[%emt 0:00:30]} 16. Rd4 {[%emt 0:01:10] White is more active.} Qe6 {[%emt 0:00:29]} 17. Qd2 {[%emt 0:01:21]} Qg6 {[%emt 0:01:24]} 18. Re1 {[%emt 0:00:45]} (18. Bxa5 Bh3 19. g4 Bxg4 20. Bxc7 Rfe8 $11) 18... Bh3 {[%emt 0:02:47]} ({Black should play} 18... a4 $14) 19. f3 $16 {[%emt 0:00:25]} a4 {[%emt 0:01:08]} (19... h6 $142) 20. Ree4 {[%emt 0:01:44]} (20. g4 $142 $1) 20... h5 {[%emt 0:01:38]} 21. Re5 {[%emt 0:00:24] Hoping for Rg5.} f6 {[%emt 0:00:34] Inhibits Rg5.} 22. Rc5 {[%emt 0:01:07]} Rfe8 {[%emt 0:00:40][%cal Oe8e1]} 23. Qf2 {[%emt 0:00:24] Prevents Re1+.} (23. Kf1 $16 Bc8 24. Bb4 (24. Rxc6 Ba6+ 25. Rd3 Kh7 $15)) 23... Rad8 $1 $11 {[%emt 0:01:23] ( -> ...Rxd4)} 24. Rd2 {[%emt 0:05:32]} (24. Rxc6 {is a self mate.} Rxd4 25. g3 Qg5 $1) 24... Bxg2 {[%emt 0:03:49]} 25. Rxd8 {[%emt 0:01:31]} ({But not} 25. Qxg2 $2 Re1+ 26. Kf2 Rxd2+ 27. Bxd2 Re2+ $3 {[%mdl 512]} 28. Kxe2 Qxg2+ 29. Kd3 Qxf3+ 30. Be3 Qf1+ 31. Kd4 Qh3 $19) 25... Bh3+ {[%emt 0:00:46]} (25... Rxd8 $11 26. Qxg2 Rd1+ 27. Kf2 Qxc2+ 28. Kg3 Qd3 29. Rxc6 Rc1) 26. Qg3 $14 {[%emt 0:00:23]} Qxg3+ {[%emt 0:00:22]} 27. hxg3 {[%emt 0:00:20]} Rxd8 {[%emt 0:00:20]} 28. Rxh5 {[%emt 0:00:38][%mdl 4096] Endgame KRB-KRB} Be6 {[%emt 0:00:52]} 29. Ra5 {[%emt 0:00:42]} Rd1+ {[%emt 0:00:21]} 30. Kf2 {[%emt 0:00:21]} Rc1 {[%emt 0:00:20]} 31. Rxa4 {[%emt 0:00:45]} Rxc2+ {[%emt 0:00:21]} 32. Ke3 {[%emt 0:00:23]} Bd5 {[%emt 0:00:26]} 33. g4 {[%emt 0:01:11]} Rc1 {[%emt 0:01:10] [#]} (33... Rg2 $14) 34. Rf4 $1 $16 {[%emt 0:01:20]} c5 {[%emt 0:00:40]} 35. a4 {[%emt 0:00:34]} Ra1 {[%emt 0:00:43]} 36. a5 {[%emt 0:00:31]} c6 {[%emt 0:00:31]} 37. b3 {[%emt 0:01:16]} Ra3 {[%emt 0:00:46]} 38. Ra4 {[%emt 0:00:25] Prevents c4.} Rxa4 {[%emt 0:00:32]} 39. bxa4 $14 {[%emt 0:00:21] a6 is the strong threat. KB-KB} Bc4 {[%emt 0:00:20]} 40. f4 {[%emt 0:01:20]} (40. Bb2 $1 $14) 40... Kf7 $11 {[%emt 0:00:35]} 41. f5 {[%emt 0:30:21]} g6 {[%emt 0:30:36]} 42. Bb2 {[%emt 0:00:33]} gxf5 {[%emt 0:00:26]} 43. gxf5 {[%emt 0:00:21]} Ba6 {[%emt 0:00:26]} 44. Ba3 {[%emt 0:00:22]} Bc8 {[%emt 0:00:27]} 45. Kf4 {[%emt 0:00:29]} c4 {[%emt 0:00:31]} 46. Bb4 {[%emt 0:00:25]} c5 {[%emt 0:00:45]} 47. Bc3 {[%emt 0:00:22]} Ke7 {[%emt 0:00:29]} 48. Bb2 {[%emt 0:00:23]} Kd6 $2 {[%emt 0:00:35][%mdl 8192]} (48... Bb7 $11 {and Black stays safe.}) 49. Bxf6 $18 {[%emt 0:00:29]} Kc6 {[%emt 0:00:21]} 50. a6 $2 {[%emt 0:00:35]} ({Better is} 50. Bc3 $18) 50... Bxf5 $11 {[%emt 0:00:38] The position is equal.} 51. Kxf5 {[%emt 0:00:56] a5 would kill now. KB-KPP} Kb6 {[%emt 0:00:21]} 52. Bc3 {[%emt 0:00:36]} Kxa6 {[%emt 0:00:21]} 53. Ke6 {[%emt 0:00:20]} Kb7 {[%emt 0:00:21]} 54. Kd5 {[%emt 0:00:20]} Ka8 {[%emt 0:00:20]} 55. Kxc4 {[%emt 0:00:21]} Kb8 {[%emt 0:00:21]} 56. Kxc5 {[%emt 0:00:22]} Ka8 {[%emt 0:00:21]} 57. Kb6 {[%emt 0:00:20]} Kb8 {[%emt 0:00:20]} 58. a5 {[%emt 0:00:20][%cal Ba4a5,Ba5a6,Ba6a7][%mdl 32]} Ka8 {[%emt 0:00:21]} 59. a6 {[%emt 0:00:20]} Kb8 {[%emt 0:00:20]} 60. a7+ {[%emt 0:00:20]} Ka8 {[%emt 0:00:21]} 61. Bb4 {[%emt 0:00:20] Weighted Error Value: White=0.17 (very precise) /Black=0.18 (very precise)} 1/2-1/2

[Event "FTX Road to Miami Prelims 2022"]
[Site "Online"]
[Date "2022.07.04"]
[Round "3.3"]
[White "Duda, Jan-Krzysztof"]
[Black "Wojtaszek, Radoslaw"]
[Result "1/2-1/2"]
[ECO "D78"]
[WhiteElo "2750"]
[BlackElo "2708"]
[Annotator "TA"]
[PlyCount "117"]
[EventDate "2022.07.10"]
[EventType "tourn"]
[EventCountry "NET"]
[SourceTitle "playchess.com"]
[Source "ChessBase"]
[SourceQuality "1"]
[TimeControl "40/5400+30:1800+30"]

{[%evp 18,117,34,24,16,16,17,12,17,0,16,16,21,27,23,25,30,25,39,20,29,16,47,22,27,18,21,37,49,41,41,27,27,15,57,17,60,54,69,79,113,91,95,68,96,91,114,41,33,60,59,16,27,16,56,56,57,0,16,0,0,0,0,-6,0,0,0,-6,0,-39,0,0,0,0,0,0,0,0,0,-7,0,0,0,0,0,0,0,0,0,-17,-17,-17,-17,-17,-8,-8,0,-17,0,-8,0,-13]} 1. Nf3 {[%emt 1:15:40]} d5 {[%emt 1:15:40]} 2. g3 {[%emt 0:00:21]} g6 {[%emt 0:00:43]} 3. Bg2 {[%emt 0:00:31]} Bg7 {[%emt 0:00:22]} 4. O-O {[%emt 0:01:14]} Nf6 {[%emt 0:00:26]} 5. c4 {[%emt 0:00:27]} c6 {[%emt 0:00:41]} 6. b3 {[%emt 0:00:27]} Ne4 {[%emt 0:01:01]} 7. d4 {[%emt 0:00:21]} O-O {[%emt 0:00:22]} 8. Bb2 {[%emt 0:00:21][%cal Bc1b2,Bb2c3,Bc3e1][%mdl 32]} Bf5 {[%emt 0:01:14]} 9. e3 {[%emt 0:00:39] is the new trend.} a5 {[%emt 0:00:28]} 10. Nc3 {[%emt 0:01:08]} Nxc3 {[%emt 0:00:23] D78: Fianchetto Grünfeld: 6 0-0 c6.} 11. Bxc3 {[%emt 0:00:20]} Be4 {[%emt 0:00:21]} 12. Qe2 {[%emt 0:00:22]} e6 {[%emt 0:00:33]} 13. Rfd1 {[%emt 0:00:42]} Nd7 {[%emt 0:00:33][%cal Bb8d7,Bd7c5,Bc5e4][%mdl 32]} 14. Bf1 {[%emt 0:00:24]} Bxf3 {[%emt 0:00:28]} 15. Qxf3 {[%emt 0:00:20]} Nc5 {[%emt 0:01:20]} 16. Be1 {[%emt 0:00:34]} Ne4 {[%emt 0:00:22] [#]} 17. Qe2 $146 {[%emt 0:00:56]} ({Predecessor:} 17. Bd3 f5 18. Rac1 g5 19. Qe2 g4 20. Bxe4 fxe4 21. Qxg4 Qe8 22. cxd5 exd5 23. Rc5 {½-½ (52) Carlsen,M (2865)-Van Foreest,J (2702) Wijk aan Zee 2022}) 17... Re8 {[%emt 0:00:55]} 18. a3 {[%emt 0:00:31]} Nd6 {[%emt 0:01:30]} 19. Qc2 {[%emt 0:00:32]} (19. a4 {keeps more tension.} c5 20. dxc5 Bxa1 21. cxd5 Nf5 22. dxe6 Qf6 23. exf7+ Kxf7 24. Qb5) 19... Qg5 {[%emt 0:00:48]} 20. c5 {[%emt 0:01:50]} Nf5 {[%emt 0:00:25]} 21. f4 {[%emt 0:00:30]} Qd8 {[%emt 0:00:51]} (21... Nxe3 $2 22. Qd3 (22. fxg5 $2 {loses.} Nxc2 23. Rac1 Nxd4 $19) 22... Qh6 23. Qxe3 $18) 22. Bf2 {[%emt 0:00:24]} b5 {[%emt 0:00:35]} 23. g4 {[%emt 0:01:02]} Ne7 {[%emt 0:01:06]} 24. Bh4 {[%emt 0:00:44]} Qd7 {[%emt 0:01:12][%cal Oe6e5]} 25. h3 {[%emt 0:00:52]} Kh8 {[%emt 0:00:42]} 26. Bd3 {[%emt 0:00:26]} f5 {[%emt 0:00:39]} 27. Qg2 {[%emt 0:02:03]} Ng8 {[%emt 0:00:27]} 28. g5 {[%emt 0:00:45]} Ne7 {[%emt 0:00:25]} 29. Kf2 {[%emt 0:00:44] White is more active.} Kg8 {[%emt 0:00:25]} 30. Bg3 {[%emt 0:01:07]} Kf7 {[%emt 0:00:38]} 31. h4 {[%emt 0:00:22][%cal Oh4h5]} Rh8 {[%emt 0:03:32]} 32. h5 {[%emt 0:00:47]} (32. a4 $16) 32... h6 $14 {[%emt 0:01:20]} 33. hxg6+ {[%emt 0:03:15]} Nxg6 {[%emt 0:00:25]} 34. gxh6 {[%emt 0:00:23]} Rxh6 {[%emt 0:00:28]} 35. Rh1 {[%emt 0:00:23]} Rah8 {[%emt 0:00:35]} 36. Rxh6 {[%emt 0:00:24]} Rxh6 {[%emt 0:00:20]} 37. Ke2 {[%emt 0:00:31]} Qd8 {[%emt 0:00:37]} 38. Rg1 {[%emt 0:00:26]} Qh8 {[%emt 0:00:32]} 39. Kd2 {[%emt 0:04:09]} Bf6 {[%emt 0:02:19]} 40. Kc3 {[%emt 0:01:43]} Be7 {[%emt 0:01:25]} 41. b4 {[%emt 0:30:38]} a4 {[%emt 0:30:26]} 42. Be1 {[%emt 0:00:25]} Bf6 {[%emt 0:00:38][%cal Og6f4] [#] Hoping for ...Nxf4!} 43. Bf2 {[%emt 0:01:25]} Qh7 {[%emt 0:00:42]} 44. Qf1 {[%emt 0:00:35] The position is equal.} Rh3 {[%emt 0:00:30]} 45. Bg3 {[%emt 0:00:27]} Ne7 {[%emt 0:01:10]} 46. Be2 {[%emt 0:00:25]} Rh6 {[%emt 0:00:34]} 47. Be1 {[%emt 0:00:27]} Rh2 {[%emt 0:00:27]} 48. Bd2 {[%emt 0:01:02]} Qh3 {[%emt 0:01:03]} 49. Qxh3 {[%emt 0:00:28] The board is on fire.} Rxh3 {[%emt 0:00:20]} 50. Bf1 {[%emt 0:00:36]} Rh2 {[%emt 0:00:24]} 51. Kd3 {[%emt 0:00:25]} Ng8 {[%emt 0:00:49]} 52. Bg2 {[%emt 0:00:35]} Bh4 {[%emt 0:00:46] [#] White must now prevent ...Bf2.} 53. Ke2 {[%emt 0:00:21] Against Bf2} Nf6 {[%emt 0:00:24]} 54. Kf3 {[%emt 0:00:28]} Ne4 {[%emt 0:00:32]} 55. Bc1 {[%emt 0:00:21]} Bf2 {[%emt 0:01:24]} 56. Rf1 {[%emt 0:00:33]} Bh4 {[%emt 0:00:22]} 57. Rg1 {[%emt 0:00:21]} Bf2 {[%emt 0:00:39]} 58. Rf1 {[%emt 0:00:26]} Bh4 {[%emt 0:00:22]} 59. Rg1 {[%emt 0:00:21] Weighted Error Value: White=0.10 (very precise) /Black=0.09 (flawless)} 1/2-1/2

[Event "FTX Road to Miami Prelims 2022"]
[Site "Online"]
[Date "2022.07.04"]
[Round "3.4"]
[White "Mamedyarov, Shakhriyar"]
[Black "Rapport, Richard"]
[Result "1-0"]
[ECO "E61"]
[WhiteElo "2759"]
[BlackElo "2764"]
[Annotator "TA"]
[PlyCount "51"]
[EventDate "2022.07.10"]
[EventType "tourn"]
[EventCountry "NET"]
[SourceTitle "playchess.com"]
[Source "ChessBase"]
[SourceQuality "1"]
[TimeControl "40/5400+30:1800+30"]

{[%evp 9,50,29,23,0,49,43,52,-12,0,-11,0,0,0,2,10,0,-4,-20,126,-12,-27,-21,10,-93,-94,-101,-117,-110,39,51,35,57,48,62,52,60,29991,29992,29992,29993,29997,29998,29999]} 1. d4 {[%emt 1:15:40]} Nf6 {[%emt 1:15:40]} 2. c4 {[%emt 0:00:24]} g6 {[%emt 0:00:26]} 3. Nc3 {[%emt 0:00:36]} Bg7 {[%emt 0:00:23]} 4. g3 {[%emt 0:00:23]} O-O {[%emt 0:00:48]} 5. Bg2 {[%emt 0:00:22]} Nc6 {[%emt 0:00:22]} (5... d6 6. Nf3 Nc6 7. O-O a6 8. e4 Rb8 9. c5 b5 10. d5 Na5 11. b4 Nc4 12. Nd4 Qe8 13. a4 e5 14. Nc6 Rb7 15. axb5 axb5 16. Ra8 Qd7 {1-0 (26) Mamedyarov,S (2767)-Rapport,R (2763) Baku 2021}) 6. h3 {[%emt 0:00:34] [#] E61: King's Indian: Early deviations for White, including Smyslov System.} e6 $146 {[%emt 0:00:39]} (6... d6 $11) ({Predecessor:} 6... Rb8 7. e3 e5 8. d5 Na5 9. Qd3 b6 10. e4 c6 11. b4 Nb7 12. Nf3 a5 13. a3 Ra8 {1-0 (59) So,W (2772)-Van Foreest,J (2688) chess24.com INT 2021}) 7. e4 $1 $14 {[%emt 0:00:38]} e5 {[%emt 0:00:51]} 8. d5 {[%emt 0:00:42]} (8. dxe5 $1 $14 Nxe5 9. b3) 8... Nd4 $11 {[%emt 0:00:23]} 9. Nf3 {[%emt 0:01:58]} c5 {[%emt 0:00:58]} 10. Nxe5 {[%emt 0:01:32]} Nxe4 $1 {[%emt 0:01:03]} 11. Nxe4 {[%emt 0:00:41] Threatens to win with Nf3.} Bxe5 {[%emt 0:00:23]} 12. O-O {[%emt 0:00:27]} d6 $1 {[%emt 0:00:24][%cal Bd7d6,Bd6e5][%mdl 32]} 13. Bg5 {[%emt 0:00:23]} Qc7 {[%emt 0:01:14]} (13... Qb6 $1 $11 {remains equal.}) 14. Re1 {[%emt 0:01:34]} ({White has to play} 14. f4 $1 $16 {[%cal Rf4e5]} Bg7 15. Nf6+ Kh8 16. g4) 14... f5 $1 {[%emt 0:01:03]} 15. Nc3 {[%emt 0:02:02]} Bd7 {[%emt 0:01:27]} (15... f4 {looks sharper.} 16. gxf4 Bxf4 17. Re7 Bd7) 16. Be7 {[%emt 0:01:02]} (16. Qd2 $11) 16... Rf7 $1 $17 {[%emt 0:00:38]} 17. Rxe5 {[%emt 0:00:23]} dxe5 {[%emt 0:00:20]} 18. d6 {[%emt 0:00:23] [#]} Qb6 {[%emt 0:00:23]} ({Black should play} 18... Qc8 $1 $17 19. Bd5 Be6) 19. Nd5 $36 {[%emt 0:00:30][%mdl 2048] Black is under pressure.} Qxb2 {[%emt 0:00:32] Hoping for ...e4.} 20. Rb1 $1 {[%emt 0:00:23][%cal Ba1b1,Bb1b7,Bb7f7][%mdl 32]} Qxa2 {[%emt 0:01:06] Strongly threatening ...e4.} ({Less strong is} 20... Ne2+ 21. Kf1 Qxa2 22. Rxb7 $16) 21. Nf6+ {[%emt 0:00:45]} Rxf6 $1 {[%emt 0:00:43]} 22. Bxf6 {[%emt 0:00:20]} Ba4 $2 {[%emt 0:06:54][%mdl 8192] This costs Black the game.} (22... Ne2+ $2 23. Kh2 Nc3 {[#]} 24. Qc1 $1 $18 (24. Bd5+ Kf8 $11)) (22... Bc6 $14 23. Bxc6 bxc6) 23. Bd5+ {[%emt 0:01:03] A strong pair of Bishops. White mates.} Kf8 {[%emt 0:00:24] [#]} 24. Rxb7 $1 {[%emt 0:00:26]} Bxd1 {[%emt 0:00:22]} (24... Bc6 25. Bg7+) 25. Rf7+ {[%emt 0:00:24][%mdl 64] Discovered Attack} Ke8 {[%emt 0:00:21]} 26. d7# {[%emt 0:00:21] Weighted Error Value: White=0.27 (precise) /Black=0.43} 1-0

[Event "FTX Road to Miami Prelims 2022"]
[Site "Online"]
[Date "2022.07.04"]
[Round "3.5"]
[White "Erigaisi Arjun"]
[Black "Radjabov, Teimour"]
[Result "1-0"]
[ECO "D02"]
[WhiteElo "2689"]
[BlackElo "2738"]
[Annotator "TA"]
[PlyCount "63"]
[EventDate "2022.07.10"]
[EventType "tourn"]
[EventCountry "NET"]
[SourceTitle "playchess.com"]
[Source "ChessBase"]
[SourceQuality "1"]
[TimeControl "40/5400+30:1800+30"]

{[%evp 9,63,7,6,14,0,-1,14,11,2,2,10,10,42,43,34,34,34,0,0,-36,-42,-54,27,29,45,45,43,14,17,13,14,0,0,0,75,82,122,125,120,125,236,241,224,210,249,241,256,256,289,274,557,517,620,626,632,581]} 1. d4 {[%emt 1:15:40]} Nf6 {[%emt 1:15:40]} 2. Nf3 {[%emt 0:00:23]} d5 {[%emt 0:00:23]} 3. Bf4 {[%emt 0:00:22]} g6 {[%emt 0:00:24]} 4. e3 {[%emt 0:00:23]} Bg7 {[%emt 0:00:21]} 5. Nbd2 {[%emt 0:00:26]} Nh5 {[%emt 0:00:41]} 6. Be5 {[%emt 0:00:52] D02: 1 d4 d5 2 Nf3 sidelines, including 2...Nf6 3 g3 and 2...Nf6 3 Bf4.} f6 {[%emt 0:00:23]} 7. Bg3 {[%emt 0:00:21]} Nxg3 {[%emt 0:00:27]} 8. hxg3 {[%emt 0:00:20] The position is equal.} c6 {[%emt 0:00:27]} 9. c4 {[%emt 0:00:26] [#]} e6 $146 {[%emt 0:00:33]} ({Predecessor:} 9... e5 10. dxe5 fxe5 11. Qb3 d4 12. exd4 exd4 13. O-O-O c5 14. Re1+ Kf7 15. Bd3 Nc6 {½-½ (29) Zupec,N (1663)-Mali,M (1651) Murska Sobota 2006}) 10. Qc2 {[%emt 0:00:39][%cal Oh1h7] [#] Black must now prevent Rxh7!} f5 {[%emt 0:00:27]} 11. g4 {[%emt 0:00:45]} O-O {[%emt 0:00:35]} 12. gxf5 {[%emt 0:00:28]} exf5 {[%emt 0:00:22]} 13. Ne5 {[%emt 0:01:33]} f4 {[%emt 0:02:41]} 14. O-O-O {[%emt 0:01:57]} fxe3 {[%emt 0:00:57]} 15. fxe3 {[%emt 0:00:20]} Bf5 {[%emt 0:02:10]} (15... Bxe5 $15 16. dxe5 Na6) 16. Bd3 $11 {[%emt 0:04:41]} Bxd3 {[%emt 0:01:26]} 17. Nxd3 {[%emt 0:00:30] Pair of Knights!} Qd6 {[%emt 0:03:35]} 18. Rh3 {[%emt 0:01:03] Rdh1 is the strong threat.} Nd7 {[%emt 0:00:57][%cal Bb8d7,Bd7f6,Bf6g4,Bg4e3][%mdl 32]} 19. Rdh1 {[%emt 0:00:23]} Rae8 {[%emt 0:00:38]} 20. Qb3 {[%emt 0:00:36]} Nf6 {[%emt 0:00:45]} 21. Qxb7 {[%emt 0:01:31]} Rb8 {[%emt 0:00:50]} (21... Ng4 $11) 22. Qa6 $16 {[%emt 0:01:10] White is more active.} Ng4 {[%emt 0:00:53]} 23. Rxh7 {[%emt 0:01:57]} Nxe3 {[%emt 0:00:35]} 24. c5 {[%emt 0:00:21]} Qf6 {[%emt 0:02:45]} (24... Qc7 $16) 25. Qxa7 $18 {[%emt 0:01:00][%cal Oh7h8] White wants to mate with Rh8+! The board is on fire.} ({Less strong is} 25. Ne5 Qf5 26. Qd3 (26. Rxg7+ Kxg7 27. Qxa7+ Kf6 $16) 26... Qxd3 27. Nxd3 Nf5 $11) 25... Qf7 {[%emt 0:00:53] [#]} 26. Qxf7+ {[%emt 0:00:21]} Rxf7 {[%emt 0:00:22]} 27. Nf3 {[%emt 0:00:45]} Ra7 {[%emt 0:00:59]} 28. a3 {[%emt 0:00:54]} Nc4 {[%emt 0:01:07]} 29. Nfe5 {[%emt 0:00:54]} Rb3 $2 {[%emt 0:00:28]} (29... Nxe5 30. Nxe5 Ra6 31. Nxg6 Re8 32. Rh8+ Bxh8 33. Rxh8+ Kf7 34. Ne5+ Rxe5 35. dxe5 Ke6) 30. Nxc6 {[%emt 0:00:29] White is clearly winning.} Rab7 {[%emt 0:00:24]} 31. Ncb4 {[%emt 0:00:33]} Rf7 {[%emt 0:00:44]} 32. Kc2 {[%emt 0:00:45] Weighted Error Value: White=0.04 (flawless) /Black=0.32} 1-0

[Event "FTX Road to Miami Prelims 2022"]
[Site "Online"]
[Date "2022.07.04"]
[Round "3.6"]
[White "Ju, Wenjun"]
[Black "Aronian, Levon"]
[Result "0-1"]
[ECO "E90"]
[WhiteElo "2560"]
[BlackElo "2775"]
[Annotator "TA"]
[PlyCount "74"]
[EventDate "2022.07.10"]
[EventType "tourn"]
[EventCountry "NET"]
[SourceTitle "playchess.com"]
[Source "ChessBase"]
[SourceQuality "1"]
[TimeControl "40/5400+30:1800+30"]

{[%evp 13,74,43,67,54,76,65,67,70,96,74,113,57,79,68,68,45,83,27,37,33,28,29,27,-9,0,0,0,0,0,0,0,-20,-15,-47,0,0,0,0,0,0,0,0,0,-199,-207,-187,-199,-152,-99,-93,-59,-349,-304,-588,-588,-562,-551,-29990,-29991,-29991,-29992,-29992,-29993]} 1. d4 {[%emt 1:15:40]} Nf6 {[%emt 1:15:40]} 2. c4 {[%emt 0:00:22]} c5 {[%emt 0:00:22]} 3. d5 {[%emt 0:00:22]} g6 {[%emt 0:00:21]} 4. Nc3 {[%emt 0:00:45]} Bg7 {[%emt 0:00:22]} 5. e4 {[%emt 0:00:21]} d6 {[%emt 0:00:22]} 6. Nf3 {[%emt 0:00:22]} O-O {[%emt 0:00:31]} 7. h3 {[%emt 0:00:32]} Nbd7 {[%emt 0:00:32]} 8. Be2 {[%emt 0:00:35] E90: King's Indian: Classical: Early deviations and 6 h3.} Ne8 {[%emt 0:00:42]} 9. Qc2 {[%emt 0:00:45]} a6 {[%emt 0:01:02]} 10. O-O {[%emt 0:00:24] [#] White is slightly better.} e5 $146 {[%emt 0:00:36]} ({Predecessor:} 10... Nc7 11. a4 Rb8 12. a5 b5 13. axb6 Rxb6 14. Bd2 Rb8 15. Rfe1 e6 16. Bf4 e5 {0-1 (38) Zaloznyy,M (2125)-Uskov,A (2403) Chess.com INT 2022}) 11. Be3 {[%emt 0:01:03]} h6 {[%emt 0:00:22]} 12. g4 {[%emt 0:02:51]} (12. Bd3 $16) 12... f5 $14 {[%emt 0:01:55]} 13. gxf5 {[%emt 0:00:32]} gxf5 {[%emt 0:00:21]} 14. exf5 {[%emt 0:00:21] Hoping for Kh2.} b5 {[%emt 0:00:21]} 15. Ne4 {[%emt 0:02:33]} (15. cxb5 $6 Nb6 $14) (15. Kh2 $1 $16) 15... Nb6 $11 {[%emt 0:01:15]} 16. Ng3 {[%emt 0:00:24]} (16. cxb5 Bxf5 17. bxa6 Kh8 $17) 16... Nxc4 {[%emt 0:00:21]} 17. Bxc4 {[%emt 0:00:24]} (17. Kh2 {keeps more tension.} Nb6 18. Rad1 Ra7 19. b4) 17... bxc4 {[%emt 0:00:19]} 18. Qxc4 {[%emt 0:00:22]} Bxf5 {[%emt 0:00:41]} 19. Nxf5 {[%emt 0:00:46]} Rxf5 {[%emt 0:00:20]} 20. Qg4 {[%emt 0:00:21][%csl LRf5,LRh6]} Rf7 {[%emt 0:00:43]} 21. Rad1 {[%emt 0:02:04]} Rb8 {[%emt 0:02:04]} 22. b3 {[%emt 0:00:23]} Rb4 $36 {[%emt 0:00:22][%mdl 2048] Black has some pressure.} 23. Qg2 {[%emt 0:02:09]} Qf6 {[%emt 0:00:23]} (23... Kh7 $15) 24. Nd2 {[%emt 0:01:00]} Rh4 {[%emt 0:00:46]} 25. f3 {[%emt 0:00:28]} Qf5 {[%emt 0:00:28] And now ...Rf6 would win.} 26. Kh2 {[%emt 0:00:30]} Kh7 {[%emt 0:01:01]} 27. Ne4 {[%emt 0:00:34]} Bf8 {[%emt 0:00:51][%cal Bg7f8,Bf8e7,Be7g5][%mdl 32]} 28. Qg3 $2 {[%emt 0:01:06] [#]} (28. Rc1 $11) 28... Be7 $1 $19 {[%emt 0:00:45]} 29. Qg2 {[%emt 0:00:52]} (29. Rg1 $2 Rg7 30. Bg5 Bxg5 $19) 29... Rg7 {[%emt 0:00:39] Dancing on a razor blade.} 30. Ng3 {[%emt 0:00:22] [#]} Qg6 {[%emt 0:00:24]} (30... Qd7 $142 $1 {Threatens to win with ...Nf6.} 31. Rg1 Bg5 32. Bxg5 Rxg5) 31. Rg1 $17 {[%emt 0:00:30]} Bg5 {[%emt 0:00:56]} 32. Qf2 {[%emt 0:00:25][%mdl 8192] White does not recover from this.} ({White should try} 32. Bxg5 $15 Qxg5 33. Qd2) 32... Nf6 $19 {[%emt 0:00:45]} ({Don't go for} 32... Bxe3 $2 33. Qxe3 Nf6 34. Rd2 (34. Ne4 $2 {leads to mate.} Rxh3+ 35. Kxh3 Qh5#)) 33. Rd2 $2 {[%emt 0:01:54]} (33. Bxg5 Qxg5 34. Rde1) 33... Bf4 {[%emt 0:00:49]} 34. Bxf4 {[%emt 0:02:39]} exf4 {[%emt 0:00:22]} 35. Ne4 {[%emt 0:00:30] [#]} Rxh3+ $3 {[%emt 0:00:23][%mdl 512] Black mates.} 36. Kxh3 {[%emt 0:00:24]} Qf5+ {[%emt 0:00:21]} 37. Rg4 {[%emt 0:00:30]} Nxg4 {[%emt 0:00:31] Weighted Error Value: White=0.72/Black=0.08 (flawless)} 0-1